Workbook

Sheet Sheet1
B2: Address | C2: Bedrooms | D2: Baths | E2: SQFT | F2: Year Built | G2: Notes | H2: Value | I2: Updated Value | K2: Rent | L2: ROI | M2: BPO | N2: ROI /BPO | O2: Explanation
A3: 1 | B3: 17 Oxford CT, Cartersville, GA 30121 | C3: 3 | D3: 2 | E3: 1205 | F3: 2004 | G3: Garage and fenced in yard | H3: 285000 | J3: 17 Oxford Dr. | K3: 1825 | L3: =K3/H3*10 -> 0.06403508772 | M3: 260000 | N3: =K3/M3*10 -> 0.07019230769 | O3: The Sale of 15 Brighton Ct lowers this valuation as it is a 4/3 with 1,490sqft | P3: https://www.realtor.com/realestateandhomes-detail/17-Oxford-Ct_Cartersville_GA_30121_M54488-94635
A4: 2 | B4: 16 Hollyhock Ln, Emerson, GA 30137 | C4: 3 | D4: 2 | E4: 1251 | F4: 2006 | G4: Split foyer | H4: 325000 | J4: 16 Hollyhock Ln | K4: 1800 | L4: 0.05538461538 | M4: 290000 | N4: 0.06206896552 | O4: Most recent sales are from 2022 in the neighborhood are at $306k. As the market has cooled off price should be adjusted to reflect this. | P4: https://www.zillow.com/homedetails/16-Hollyhock-Ln-Emerson-GA-30137/68120212_zpid/
A5: 3 | B5: 21 Habersham Circle NE, Cartersville, GA 30121 | C5: 3 | D5: 1 | E5: 880 | F5: 1960 | G5: Three / one | H5: 200000 | J5: 21 Habersham Dr. | K5: 925 | L5: 0.04625 | M5: 200000 | N5: 0.04625 | O5: 2 homes close by have both sold for $270k fully renovated 3/2 roughly 1,150 sqft | P5: https://www.zillow.com/homedetails/21-Habersham-Cres-Cartersville-GA-30121/14106919_zpid/
A6: 4 | B6: 169 Gaston Westbrook Ave, Emerson, GA 30137 | C6: 3 | D6: 1 | E6: 990 | F6: 1970 | G6: Three / one | H6: 160000 | J6: 169 Gaston Westbrook | K6: 825 | L6: 0.0515625 | M6: 140000 | N6: 0.05892857143 | O6: Closest sale (37 red top cir) sold for $125k with 3/2 and 1,200 sqft needed full renovation | P6: https://www.zillow.com/homedetails/169-Gaston-Westbrook-Ave-Emerson-GA-30137/14119144_zpid/
A7: 5 | B7: 4 E Carter St, Cartersville, GA 30120 | C7: 3 | D7: 1 | E7: 1080 | F7: 2005 | G7: Ranch home with front porch next to RR tracks | H7: 250000 | J7: 4 E. Carter St. | K7: 1365 | L7: 0.0546 | M7: 215000 | N7: 0.06348837209 | O7: A few recent sales in the area averaging $229k, highest 3/1 fully renovated for $252k (14 Wells St) | P7: https://www.zillow.com/homedetails/4-E-Carter-St-Cartersville-GA-30120/14114400_zpid/
A8: 6 | B8: 134 Roosevelt St, Cartersville, GA 30120 | C8: 3 | D8: 1 | E8: 936 | F8: 1985 | G8: house on stilts, reno 2023 | H8: 265000 | J8: 134 Roosevelt St. | K8: 1525 | L8: 0.05754716981 | M8: 252000 | N8: 0.06051587302 | O8: Closest comparable is 14 Wells St 3/1 with 1,088 sqft sold for $252k | P8: https://www.zillow.com/homedetails/134-Roosevelt-St-Cartersville-GA-30120/14114826_zpid/
A9: 7 | B9: 16 Parmenter St, Cartersville, GA 30120 | C9: 2 | D9: 1 | E9: 1121 | F9: 1950 | G9: Two / one | H9: 205000 | J9: 16 Parmenter St. | K9: 1150 | L9: 0.05609756098 | M9: 210000 | N9: 0.05476190476 | O9: Closest comp is 27 litchfield st at $224k 2/1 with 1,034sqft | P9: https://www.zillow.com/homedetails/16-Parmenter-St-Cartersville-GA-30120/14116543_zpid/
A10: 8 | B10: 110 Courrant St, Cartersville, GA 30120 | C10: 3 | D10: 1 | E10: 988 | F10: 1980 | G10: Reno 2022 | H10: 235500 | J10: 110 Courrant St. | K10: 1600 | L10: 0.06794055202 | M10: 225000 | N10: 0.07111111111 | O10: 18 Mockingbird Dr sold for $225k fully renovated 949sqft 3/1 | P10: https://www.zillow.com/homedetails/110-Courrant-St-Cartersville-GA-30120/14115023_zpid/
A11: 9 | B11: 347 N. Gilmer St, Cartersville, GA 30120 | C11: 3 | D11: 2 | E11: 1109 | F11: 1940 | G11: Three / two - completely reno 2024 brand new home | H11: 235000 | J11: 347 N. Gilmer St. | K11: 1150 | L11: 0.04893617021 | M11: 240000 | N11: 0.04791666667 | O11: I would like to see the condition but fully renovated I feel good about my price opinion | P11: https://www.zillow.com/homedetails/347-Gilmer-St-Cartersville-GA-30120/14114571_zpid/
A12: 10 | B12: 517 West Main Street, Cartersville, GA 30120 | C12: 3 | D12: 2 | E12: 1268 | F12: 1950 | G12: Total Reno 2022 new from ext studs down, walking distance down town | H12: 285000 | J12: 517 West Main Street | K12: 1875 | L12: 0.06578947368 | M12: 285000 | N12: 0.06578947368 | O12: Looks like this is currently listed for sale with an agent. The 2 different flooring colors are hurting this sale. I recommend sanding and refinishing the hardwoods to match the new lvp flooring. | P12: https://www.zillow.com/homedetails/517-W-Main-St-Cartersville-GA-30120/14115250_zpid/
A13: 11 | B13: 20 Florida Ave, Emerson, GA 30137 | C13: 3 | D13: 1 | E13: 1252 | F13: 1960 | G13: huge shop out back, fenced in yard great location | H13: 340000 | J13: 20 Florida Ave. | K13: 1675 | L13: 0.04926470588 | M13: 340000 | N13: 0.04926470588 | O13: Recent sale 15 E Georgia Ave $360k 3,1 with 1,167sqft | P13: https://www.zillow.com/homedetails/20-Florida-Ave-Emerson-GA-30137/246738114_zpid/
A14: 12 | B14: 559 Center Road SE, Cartersville, GA 30121 | C14: 3 | D14: 1 | E14: 900 | F14: 1970 | G14: private yard | H14: 190000 | J14: 559 Center Road SE | K14: 1600 | L14: 0.08421052632 | M14: 190000 | N14: 0.08421052632 | O14: Recent sale of 40 Rock Fence Cir for $249k 3/2 with 1,352sqft | P14: https://www.zillow.com/homedetails/559-Center-Rd-Cartersville-GA-30121/14107724_zpid/
A15: 13 | B15: 24 Walker St, Cartersville, GA 30120 | C15: 3 | D15: 1 | E15: 1176 | F15: 1975 | G15: Great location and desirable neighborhood- walking distance to down town | H15: 250000 | J15: 24 Walker St. | K15: 1110 | L15: 0.0444 | M15: 225000 | N15: 0.04933333333 | O15: Pending sale of 317 Jackson St $185k 2/1 with 1,152sqft | P15: https://www.zillow.com/homedetails/24-Walker-St-Cartersville-GA-30120/14115485_zpid/
A16: 14 | B16: 31 Brent Circle SW, Cartersville, GA 30120 | C16: 3 | D16: 1 | E16: 1200 | F16: 1980 | G16: Big yard | H16: 240000 | J16: 31 Brent Circle SW | K16: 1250 | L16: 0.05208333333 | M16: 195000 | N16: 0.0641025641 | O16: 11 Brent Cir sold for $195k 3/2 with 1,792 sqft | P16: https://www.zillow.com/homedetails/31-Brent-Cres-Cartersville-GA-30120/14099087_zpid/
A17: 15 | B17: 107 Ohio Street, Cartersville, GA 30120 | C17: 4 | D17: 2 | E17: 1104 | F17: 1985 | G17: Reno 2022 | H17: 240000 | J17: 107 Ohio Street | K17: 1750 | L17: 0.07291666667 | M17: 225000 | N17: 0.07777777778 | O17: 40 wingfoot trail sold for $245k 2/1 with 1,424sqft | P17: https://www.zillow.com/homedetails/107-Ohio-St-Cartersville-GA-30120/14116292_zpid/
A18: 16 | B18: 61 Harrison Rd Sw, Cartersville, GA 30120 | C18: 3 | D18: 3 | E18: 1680 | F18: 1990 | G18: Trailer, on a great piece of property, great location | H18: 140000 | J18: 61 Harrison Rd Sw | K18: 1250 | L18: 0.08928571429 | M18: 140000 | N18: 0.08928571429 | O18: Good valuation, need to confirm title has been retired | P18: https://www.zillow.com/homedetails/61-Harrison-Rd-Cartersville-GA-30120/246735893_zpid/
A19: 17 | B19: 13 Courrant St, Cartersville, GA 30120 | C19: 3 | D19: 1 | E19: 800 | F19: 1975 | G19: Three / one | H19: 165000 | J19: 13 Courrant St. | K19: 935 | L19: 0.05666666667 | M19: 165000 | N19: 0.05666666667 | O19: Recent sale 33 E Porter St $235k renovated 2/1 with 988 sqft | P19: https://www.zillow.com/homedetails/13-Courrant-St-Cartersville-GA-30120/14115072_zpid/
A20: 18 | B20: 308 Douglas St, Cartersville, GA 30120 | C20: 3 | D20: 2 | E20: 900 | F20: 1950 | G20: Total Reno 2022 new from ext studs down | H20: 250000 | J20: 308 Douglas St. | K20: 2050 | L20: 0.082 | M20: 245000 | N20: 0.08367346939 | O20: 8 Summit st basic reno been on the market for 107 days at $260k 3/2 with 1,563sqft | P20: https://www.zillow.com/homedetails/308-Douglas-St-Cartersville-GA-30120/14115065_zpid/
A21: 19 | B21: 429 Old Tenn Hwy, White, GA 30184 | C21: 3 | D21: 1 | E21: 1008 | F21: 1950 | G21: close to Toyo | H21: 200000 | J21: 429 Old Tenn Hwy | K21: 1090 | L21: 0.0545 | M21: 180000 | N21: 0.06055555556 | O21: 102 whispering pine lane sold for $260k 3/2 with 1,196 sqft | P21: https://www.zillow.com/homedetails/429-Old-Tennessee-Hwy-NE-White-GA-30184/14119645_zpid/
A22: 20 | B22: 12 Wingfoot Trail, Cartersville, GA 30120 | C22: 2 | D22: 1 | E22: 900 | F22: 1940 | G22: Two / one | H22: 200000 | J22: 12 Wingfoot Trail | K22: 1100 | L22: 0.055 | M22: 180000 | N22: 0.06111111111 | O22: 4 Parmenter St sold $175k 2/1 with 1,152 | P22: https://www.zillow.com/homedetails/12-Wingfoot-Trl-Cartersville-GA-30120/14116403_zpid/
A23: 21 | B23: 35 Akron St, Cartersville GA, 30120 | C23: 2 | D23: 1 | E23: 833 | F23: 1940 | G23: Two / one | H23: 200000 | J23: 35 Akron St. | K23: 1250 | L23: 0.0625 | M23: 175000 | N23: 0.07142857143 | O23: Based on recent sales of non renovated properties close by | P23: https://www.zillow.com/homedetails/35-Akron-St-Cartersville-GA-30120/14116573_zpid/
A24: 22 | B24: 126 W Carter St, Cartersville, GA 30120 | C24: 2 | D24: 1 | E24: 912 | F24: 1950 | G24: Two / one | H24: 180000 | J24: 126 W Carter St | K24: 945 | L24: 0.0525 | M24: 170000 | N24: 0.05558823529 | O24: 317 Jackson St is under contract around $185k with 1,152 sqft 2/1 | P24: https://www.zillow.com/homedetails/126-W-Carter-St-Cartersville-GA-30120/14114274_zpid/
A25: 23 | B25: 132 W Carter St, Cartersville, GA 30120 | C25: 3 | D25: 2 | E25: 1200 | F25: 1980 | G25: Reno 2018 | H25: 225000 | J25: 132 Carter St. | K25: 1550 | L25: 0.06888888889 | M25: 215000 | N25: 0.07209302326 | O25: 10 Elizabeth st sold for $225k 3/2 with 1,860sqft | P25: https://www.zillow.com/homedetails/132-W-Carter-St-Cartersville-GA-30120/14114275_zpid/
A26: 24 | B26: 1564 Cassville Rd, Units A & B, Cartersville, GA 30121 | C26: 3 | D26: 1 | F26: 1980 | G26: Duplex 3/1 & 2/1 | H26: 255000 | J26: 1564 Cassville Rd Unit A & B | K26: 2525 | L26: 0.09901960784 | M26: 255000 | N26: 0.09901960784 | P26: https://www.zillow.com/homedetails/1564-Cassville-Rd-NW-A-Cartersville-GA-30121/2085669866_zpid/
A27: 25 | B27: 307 Green Acre Lane, Cartersville, GA 30121 | C27: 4 | D27: 1 | E27: 1596 | F27: 1980 | G27: Great ranch home in a great neighborhood | H27: 290000 | J27: 307 Green Acre Lane | K27: 1900 | L27: 0.06551724138 | M27: 260000 | N27: 0.07307692308 | O27: Would need to add a bathroom to get 290-300. Depending on condition would suggest 250K as-is | P27: https://www.zillow.com/homedetails/307-Green-Acre-Ln-Cartersville-GA-30121/14103945_zpid/
A28: 26 | B28: 1 Briarwood Lane, Cartersville, GA 30120 | C28: 2 | D28: 1 | E28: 900 | F28: 1980 | G28: Two bedroom one bath | H28: 165000 | J28: 1 Briarwood Lane | K28: 1150 | L28: 0.0696969697 | M28: 160000 | N28: 0.071875 | O28: Same as 3 Briarwood Ln. Same square footage | P28: https://www.zillow.com/homedetails/1-Briarwood-Ln-Cartersville-GA-30120/2077091603_zpid/
A29: 27 | B29: 3 Briarwood Lane, Cartersville, GA 30120 | C29: 2 | D29: 1 | E29: 900 | F29: 1980 | G29: Reno 2018, two bedroom one bath | H29: 165000 | J29: 3 Briarwood Lane | K29: 950 | L29: 0.05757575758 | M29: 160000 | N29: 0.059375 | O29: ARV 190-205k. Assuming as-is condition would suggest $160,000 | P29: https://www.redfin.com/GA/Cartersville/3-Briarwood-Ln-30120/home/23989617
A30: 28 | B30: 4 Briarwood Lane, Cartersville, GA 30120 | C30: 3 | D30: 1 | E30: 1060 | F30: 1980 | G30: rough on inside, tenant has lived there entire time, once fixed would be great home | H30: 180000 | J30: 4 Briarwood Lane | K30: 800 | L30: 0.04444444444 | M30: 180000 | N30: 0.04444444444 | O30: 200k is around the ARV but just depends how much work is needed. AS-is should be 175-180K | P30: https://www.zillow.com/homedetails/4-Briarwood-Ln-Cartersville-GA-30120/14105515_zpid/
A31: 29 | B31: 6 Briarwood Lane, Cartersville, GA 30120 | C31: 3 | D31: 1 | E31: 1100 | F31: 1980 | G31: Good home in good shape | H31: 190000 | J31: 6 Briarwood Lane | K31: 1025 | L31: 0.05394736842 | M31: 205000 | N31: 0.05 | O31: Showing in taxes as a 2/1 so not sure about size with BR but for a 3 BR depending on condition it can get low 200s | P31: https://www.zillow.com/homedetails/6-Briarwood-Ln-Cartersville-GA-30120/14105516_zpid/
A32: 30 | B32: 9 Briarwoood, Cartersville, GA 30120 | C32: 2 | D32: 1 | E32: 936 | F32: 2000 | G32: Two bedroom one bath built in 2000s | H32: 210000 | J32: 9 Briarwoood | K32: 1025 | L32: 0.04880952381 | M32: 210000 | N32: 0.04880952381 | O32: The 2/1s on Akron St all should be comparable to the Briarwood properties so it depends on condition but $210k as is should be realistic | P32: https://www.zillow.com/homedetails/9-Briarwood-Ln-Cartersville-GA-30120/14105536_zpid/
A33: 31 | B33: 16 Briarwood Lane, Cartersville, GA 30120 | C33: 3 | D33: 2 | E33: 1345 | F33: 1980 | G33: Reno 2018 | H33: 255000 | J33: 16 Briarwood Lane | K33: 1425 | L33: 0.05588235294 | M33: 255000 | N33: 0.05588235294 | O33: 15 jones mill place sold August this year at 258,000. low DOM | P33: https://www.realtor.com/realestateandhomes-detail/16-Briarwood-Ln_Cartersville_GA_30120_M56162-18717
A34: 32 | B34: 23 Ohio St, Cartersville, GA 30120 | C34: 2 | D34: 1 | E34: 960 | F34: 1950 | G34: Two bedroom one bath | H34: 200000 | J34: 23 Ohio St | K34: 1425 | L34: 0.07125 | M34: 210000 | N34: 0.06785714286 | O34: Condition is dependant but renovated should go for 250-260K. But assuming normal wear and tear As-is price would be 210,000 | P34: https://www.realtor.com/realestateandhomes-detail/23-Ohio-St_Cartersville_GA_30120_M64251-87797
A35: 33 | B35: 3 Grassdale Road, Units A & B, Cartersville, GA 30121 | C35: 3 | D35: 2 | E35: 2800 | F35: 2019 | G35: Duplex, both sides 3/2 built to my energy standards, 2021 | H35: 395000 | J35: 3 Grassdale Road A & B | K35: 3250 | L35: 0.08227848101 | M35: 375000 | N35: 0.08666666667 | O35: Rental rate is lower than market but to be able to sell I would recommend pricing attractively at 375K | P35: https://www.zillow.com/homedetails/3-Grassdale-Rd-A-Cartersville-GA-30120/2078043600_zpid/
A36: 34 | B36: 106 Pine Forest Road, Catersville, GA 30120 | C36: 3 | D36: 2 | E36: 1196 | F36: 1975 | G36: Rennovated 1/22 - new home now | H36: 350000 | J36: 106 Pine Forest | K36: 1975 | L36: 0.05642857143 | M36: 320000 | N36: 0.06171875 | O36: 58 Quail Run sold at 320k 2 months ago and had just slightly more square footage | P36: https://www.zillow.com/homedetails/106-Pine-Forrest-Dr-Cartersville-GA-30120/14116992_zpid/
A37: 35 | B37: 128 Lee St, Cartersville, Cartersville, GA 30120 | C37: 3 | D37: 1 | E37: 1154 | F37: 2023 | G37: Just rennovated, totally new home | H37: 260000 | J37: 128 Lee St | K37: 1575 | L37: 0.06057692308 | M37: 250000 | N37: 0.063 | O37: 14 Wells sold at 252k 3 months ago. 3/1 also but slightly more square footage | P37: https://www.zillow.com/homedetails/128-Lee-St-Cartersville-GA-30120/14115492_zpid/
A38: 36 | B38: 16 Walker St Cartersville, Cartersville, GA 30120 | C38: 3 | D38: 2 | E38: 1511 | F38: 2023 | G38: Brand new 3/2 with a garage | H38: 350000 | J38: 16 Walker St | K38: 2200 | L38: 0.06285714286 | M38: 350000 | N38: 0.06285714286 | O38: Same as 20 Walker | P38: https://www.zillow.com/homedetails/16-Walker-St-Cartersville-GA-30120/14115483_zpid/
A39: 37 | B39: 20 Walker St Cartersville, Cartersville, GA 30120 | C39: 3 | D39: 2 | E39: 1511 | F39: 2023 | G39: Brand new 3/2 with a garage | H39: 350000 | J39: 20 Walker St | K39: 2140 | L39: 0.06114285714 | M39: 350000 | N39: 0.06114285714 | O39: 3/2 new construction under .5 acre lots going around 350K | P39: https://www.zillow.com/homedetails/20-Walker-St-Cartersville-GA-30120/14115484_zpid/
A40: 38 | B40: 144 Aubrey Street, Cartersville, GA 30120 | C40: 4 | D40: 2.5 | E40: 1503 | F40: 2024 | G40: Brand new under contruction | H40: 345000 | J40: 144 Aubrey Street | K40: 2200 | L40: 0.06376811594 | M40: 350000 | N40: 0.06285714286 | O40: Not many comps but new construction 350+
A41: 39 | B41: 117 Cassville Road, Cartersville, GA 30120 | C41: 3 | D41: 2 | E41: 1486 | F41: 2024 | G41: Reno in process | H41: 299000 | J41: 117 Cassville Road | K41: 1875 | L41: 0.0627090301 | M41: 275000 | N41: 0.06818181818 | O41: Once reno complete should be worth 275K+ | P41: https://www.zillow.com/homedetails/117-Cassville-Rd-Cartersville-GA-30120/14115156_zpid/
A42: 40 | B42: 201 Etowah Drive, Cartersville, GA 30120 | C42: 2 | D42: 2 | E42: 1158 | F42: 2024 | G42: Total reno brand new home | H42: 325000 | J42: 201 Etowah Drive | K42: 1700 | L42: 0.05230769231 | M42: 310000 | N42: 0.05483870968 | O42: Listed for 330K. Good renovation but market slower would suggest listing slightly lower | P42: https://www.zillow.com/homedetails/201-Etowah-Dr-Cartersville-GA-30120/14115328_zpid/
A43: 41 | B43: 3 Akron Street, Cartersville, GA 30120 | C43: 2 | D43: 1 | E43: 960 | F43: 1950 | G43: 2/1 with the potential if reno | H43: 245000 | J43: 3 Akron St | K43: 1275 | L43: 0.05204081633 | M43: 225000 | N43: 0.05666666667 | O43: 27 Litchfield sold for 224,900 3 months ago. 2/1 with similar square footage | P43: https://www.zillow.com/homedetails/3-Akron-St-Cartersville-GA-30120/14116425_zpid/
A44: 42 | B44: 15 Opal Street, Cartersville, GA 30120 | C44: 2 | D44: 1 | E44: 840 | F44: 1955 | G44: 2/1 paint and carpet | H44: 190000 | J44: 15 Opal St | K44: 0 | L44: 0 | M44: 190000 | N44: 0
B46: Sales Price | H46: =SUM(H3:H44) -> 10284500 | J46: Monthly Rent Collected | K46: =SUM(K3:K44) -> 62010 | L46: =AVERAGE(L3:L44) -> 0.05982410781 | M46: =SUM(M3:M44) -> 9852000 | N46: =AVERAGE(N3:N44) -> 0.06248533927
J47: Annual Rent Collected | K47: =K46*12 -> 744120
B48: Down payment | C48: 1825100 | J48: Annual Expenses Est. (30%) | K48: =K47*0.3 -> 223236
B49: Interest rate | C49: 0.05 | J49: CAP Rate | K49: =(K47-K48)/M46 -> 0.05287088916
B50: Amortization | C50: 30
B51: Payment | C51: 44392 | J51: Broker Price Opinion | K51: =M46 -> 9852000
J52: Estimated Commission | K52: =M46*0.02+205000 -> 402040
J53: Estimated Net | K53: =M46-K52 -> 9449960
